[Event "44th Chess Olympiad Women 2022"]
[Site "Chennai"]
[Date "2022.07.31"]
[Round "3.3"]
[White "Pilsova, Karolina"]
[Black "Melia, Salome"]
[Result "1/2-1/2"]
[WhiteElo "2230"]
[BlackElo "2384"]
[Annotator "RC"]
[PlyCount "111"]
[EventDate "2022.??.??"]
[TimeControl "60"]

1. e4 {[%emt 0:00:03]} c5 {[%emt 0:00:06]} 2. Nf3 {[%emt 0:00:05]} Nc6 {
[%emt 0:00:23]} 3. d4 {[%emt 0:00:10]} cxd4 {[%emt 0:00:11]} 4. Nxd4 {[%emt 0:
00:00]} Nf6 {[%emt 0:00:59]} 5. Nc3 {[%emt 0:00:26]} e5 {[%emt 0:00:09]} 6.
Ndb5 {[%emt 0:00:11]} d6 {[%emt 0:00:19]} 7. Bg5 {[%emt 0:00:26]} a6 {[%emt 0:
00:00]} 8. Na3 {[%emt 0:00:06]} b5 {[%emt 0:00:11]} 9. Nd5 {[%emt 0:00:16]} Be7
{[%emt 0:00:06]} 10. Bxf6 {[%emt 0:00:04]} Bxf6 {[%emt 0:00:04]} 11. c3 {
[%emt 0:00:18]} O-O {[%emt 0:01:41]} 12. Nc2 {[%emt 0:00:45]} Rb8 {[%emt 0:00:
00]} 13. h4 {[%emt 0:02:58]} g6 {[%emt 0:01:37]} 14. h5 {[%emt 0:10:31]} Bg5 {
[%emt 0:01:54]} 15. a4 {[%emt 0:03:50]} bxa4 {[%emt 0:03:57]} 16. Ncb4 {
[%emt 0:01:01]} Nxb4 {[%emt 0:10:29]} 17. cxb4 {[%emt 0:01:24]} Bb7 {[%emt 0:
00:00]} 18. Rxa4 {[%emt 0:06:32]} Rc8 {[%emt 0:04:08]} 19. Ra1 {[%emt 0:17:49]}
Bxd5 {[%emt 0:00:29]} 20. Qxd5 {[%emt 0:06:20]} Qb6 {[%emt 0:15:49]} 21. Qb3 {
[%emt 0:06:35]} Qd4 {[%emt 0:12:26]} 22. Bd3 {[%emt 0:00:56]} Bc1 {[%emt 0:00:
00]} 23. O-O {[%emt 0:17:34]} Bxb2 {[%emt 0:00:29]} 24. Rad1 {[%emt 0:03:02]}
Rb8 {[%emt 0:04:03]} 25. hxg6 {[%emt 0:07:11]} hxg6 {[%emt 0:00:24]} 26. Bc4 {
[%emt 0:00:24]} Qc3 {[%emt 0:03:34]} 27. Qxc3 {[%emt 0:02:05]} Bxc3 {[%emt 0:
00:00]} 28. Rxd6 {[%emt 0:00:06]} Kg7 {[%emt 0:02:18]} 29. Rxa6 {[%emt 0:01:43]
} Rxb4 {[%emt 0:00:09]} 30. Bd5 {[%emt 0:00:24]} Bd4 {[%emt 0:00:08]} 31. Ra3 {
[%emt 0:01:35]} Rc8 {[%emt 0:02:35]} 32. Rb3 {[%emt 0:06:07]} Rxb3 {[%emt 0:00:
00]} 33. Bxb3 {[%emt 0:00:06]} Rb8 {[%emt 0:00:01]} 34. Rb1 {[%emt 0:01:37]}
Rb6 {[%emt 0:00:40]} 35. Ba2 {[%emt 0:00:56]} Rf6 {[%emt 0:00:56]} 36. Rf1 {
[%emt 0:00:07]} Rc6 {[%emt 0:00:42]} 37. Bd5 {[%emt 0:01:53]} Rc2 {[%emt 0:00:
00]} 38. g3 {[%emt 0:00:50]} f5 {[%emt 0:01:40]} 39. Kg2 {[%emt 0:02:32]} Kf6 {
[%emt 0:01:05]} 40. Bb7 {[%emt 0:00:35]} Rb2 {[%emt 0:02:35]} 41. Bd5 {[%emt 0:
00:00]} Rd2 {[%emt 0:32:14]} 42. Bb7 {[%emt 0:00:00]} Kg5 {[%emt 0:00:00]} 43.
Kf3 {[%emt 0:00:00]} Rd3+ {[%emt 0:00:00]} 44. Kg2 {[%emt 0:00:00]} Rd2 {
[%emt 0:00:00]} 45. Kf3 {[%emt 0:00:00]} Rc2 {[%emt 0:00:00]} 46. Bd5 {[%emt 0:
00:00]} Kf6 {[%emt 0:00:00]} 47. Bb7 {[%emt 0:00:00]} Rc3+ {[%emt 0:00:00]} 48.
Ke2 {[%emt 0:00:00]} f4 {[%emt 0:00:00]} 49. gxf4 {[%emt 0:00:00]} exf4 {
[%emt 0:00:00]} 50. f3 {[%emt 0:00:00]} Ke5 {[%emt 0:00:00]} 51. Kd2 {[%emt 0:
00:00]} Ra3 {[%emt 0:00:00]} 52. Bc8 {[%emt 0:00:00]} Bc3+ {[%emt 0:00:00]} 53.
Kc2 {[%emt 0:00:00]} Bd4 {[%emt 0:00:31]} 54. Bg4 {[%emt 0:00:00]} Ra1 {
[%emt 0:03:30]} 55. Rxa1 {[%emt 0:00:00]} Bxa1 {[%emt 0:00:03]} 56. Kd3 {
[%emt 0:00:00]} 1/2-1/2

[Event "44th Chess Olympiad Women 2022"]
[Site "Chennai"]
[Date "2022.07.31"]
[Round "3.4"]
[White "Bach, Ngoc Thuy Duong"]
[Black "Malicka, Maria"]
[Result "1/2-1/2"]
[WhiteElo "2192"]
[BlackElo "2393"]
[Annotator "RC"]
[PlyCount "148"]
[EventDate "2022.??.??"]
[TimeControl "60"]

1. d4 {[%emt 0:00:05]} Nf6 {[%emt 0:00:04]} 2. c4 {[%emt 0:00:10]} e6 {[%emt 0:
00:00]} 3. Nc3 {[%emt 0:00:15]} Bb4 {[%emt 0:00:06]} 4. Qc2 {[%emt 0:00:08]}
O-O {[%emt 0:00:07]} 5. a3 {[%emt 0:00:35]} Bxc3+ {[%emt 0:00:05]} 6. Qxc3 {
[%emt 0:00:07]} d5 {[%emt 0:00:12]} 7. Bg5 {[%emt 0:01:26]} c5 {[%emt 0:00:13]}
8. cxd5 {[%emt 0:05:06]} cxd4 {[%emt 0:00:15]} 9. Qxd4 {[%emt 0:02:16]} Nc6 {
[%emt 0:00:08]} 10. Qh4 {[%emt 0:02:30]} exd5 {[%emt 0:00:58]} 11. e3 {[%emt 0:
00:00]} d4 {[%emt 0:10:29]} 12. Bd3 {[%emt 0:07:32]} Qa5+ {[%emt 0:05:52]} 13.
Ke2 {[%emt 0:07:02]} Bf5 {[%emt 0:06:13]} 14. Bxf5 {[%emt 0:05:46]} Qxf5 {
[%emt 0:00:10]} 15. Bxf6 {[%emt 0:01:15]} gxf6 {[%emt 0:04:40]} 16. Nh3 {
[%emt 0:03:02]} Qc2+ {[%emt 0:07:37]} 17. Kf1 {[%emt 0:02:24]} Qxb2 {[%emt 0:
00:00]} 18. Re1 {[%emt 0:01:13]} dxe3 {[%emt 0:16:48]} 19. fxe3 {[%emt 0:06:00]
} Rfd8 {[%emt 0:07:39]} 20. Nf4 {[%emt 0:02:10]} Qb5+ {[%emt 0:00:41]} 21. Kg1
{[%emt 0:00:09]} Qg5 {[%emt 0:00:37]} 22. Qf2 {[%emt 0:02:53]} Qa5 {[%emt 0:00:
00]} 23. h3 {[%emt 0:04:38]} Ne7 {[%emt 0:05:45]} 24. Kh2 {[%emt 0:02:45]} Qe5
{[%emt 0:01:59]} 25. Rhf1 {[%emt 0:02:21]} Rac8 {[%emt 0:00:52]} 26. Qf3 {
[%emt 0:04:41]} b5 {[%emt 0:02:11]} 27. Rd1 {[%emt 0:06:05]} Ng6 {[%emt 0:00:
00]} 28. Kh1 {[%emt 0:07:36]} Nxf4 {[%emt 0:00:15]} 29. exf4 {[%emt 0:00:09]}
Qf5 {[%emt 0:00:51]} 30. Rxd8+ {[%emt 0:00:56]} Rxd8 {[%emt 0:00:01]} 31. Qb7 {
[%emt 0:01:28]} Qc5 {[%emt 0:06:47]} 32. Rf3 {[%emt 0:08:53]} h5 {[%emt 0:00:
00]} 33. Rg3+ {[%emt 0:01:45]} Kf8 {[%emt 0:00:18]} 34. Kh2 {[%emt 0:00:42]} a5
{[%emt 0:04:36]} 35. Qa6 {[%emt 0:02:00]} h4 {[%emt 0:02:04]} 36. Rg4 {[%emt 0:
00:00]} Rd1 {[%emt 0:00:31]} 37. Qa8+ {[%emt 0:00:58]} Ke7 {[%emt 0:00:02]} 38.
Qe4+ {[%emt 0:00:21]} Kd6 {[%emt 0:01:06]} 39. Rxh4 {[%emt 0:00:54]} Qg1+ {
[%emt 0:00:20]} 40. Kg3 {[%emt 0:00:40]} Qe1+ {[%emt 0:01:38]} 41. Qxe1 {
[%emt 0:30:05]} Rxe1 {[%emt 0:30:01]} 42. Rh5 {[%emt 0:00:40]} Rb1 {[%emt 0:00:
00]} 43. a4 {[%emt 0:00:00]} bxa4 {[%emt 0:00:00]} 44. Rxa5 {[%emt 0:00:00]}
Ra1 {[%emt 0:00:00]} 45. h4 {[%emt 0:00:00]} Ke7 {[%emt 0:00:00]} 46. Kg4 {
[%emt 0:00:00]} Kf8 {[%emt 0:00:00]} 47. Kf5 {[%emt 0:00:00]} Kg7 {[%emt 0:00:
00]} 48. g4 {[%emt 0:00:00]} a3 {[%emt 0:00:00]} 49. h5 {[%emt 0:00:00]} a2 {
[%emt 0:00:00]} 50. Ra8 {[%emt 0:00:44]} Rb1 {[%emt 0:00:07]} 51. Rxa2 {
[%emt 0:00:15]} Rb5+ {[%emt 0:00:05]} 52. Ke4 {[%emt 0:00:11]} f5+ {[%emt 0:00:
00]} 53. gxf5 {[%emt 0:00:07]} Rb4+ {[%emt 0:00:28]} 54. Kf3 {[%emt 0:00:35]}
Rb1 {[%emt 0:00:24]} 55. Rg2+ {[%emt 0:03:15]} Kf6 {[%emt 0:01:03]} 56. Kg4 {
[%emt 0:00:16]} Rh1 {[%emt 0:01:13]} 57. Rg3 {[%emt 0:00:12]} Kg7 {[%emt 0:00:
00]} 58. Kf3+ {[%emt 0:01:51]} Kf6 {[%emt 0:00:11]} 59. Kg4 {[%emt 0:01:08]}
Kg7 {[%emt 0:00:01]} 60. Kg5 {[%emt 0:00:12]} f6+ {[%emt 0:01:00]} 61. Kg4 {
[%emt 0:00:08]} Rf1 {[%emt 0:00:57]} 62. Ra3 {[%emt 0:01:12]} Rg1+ {[%emt 0:00:
00]} 63. Kh4 {[%emt 0:01:31]} Rh1+ {[%emt 0:00:24]} 64. Rh3 {[%emt 0:00:13]}
Rf1 {[%emt 0:00:23]} 65. Kg3 {[%emt 0:00:23]} Kh6 {[%emt 0:00:47]} 66. Rh4 {
[%emt 0:00:20]} Ra1 {[%emt 0:01:06]} 67. Kf3 {[%emt 0:00:14]} Ra4 {[%emt 0:00:
00]} 68. Rh2 {[%emt 0:01:01]} Rb4 {[%emt 0:00:29]} 69. Re2 {[%emt 0:00:27]} Rb5
{[%emt 0:00:30]} 70. Re6 {[%emt 0:01:03]} Rxf5 {[%emt 0:00:30]} 71. Kg4 {
[%emt 0:00:41]} Rxh5 {[%emt 0:00:36]} 72. Rxf6+ {[%emt 0:00:12]} Kg7 {[%emt 0:
00:00]} 73. Ra6 {[%emt 0:00:22]} Rb5 {[%emt 0:00:21]} 74. f5 {[%emt 0:00:41]}
Rb1 {[%emt 0:00:08]} 1/2-1/2

[Event "44th Chess Olympiad Women 2022"]
[Site "Chennai"]
[Date "2022.07.31"]
[Round "3.4"]
[White "Hoang, Thi Bao Tram"]
[Black "Socko, Monika"]
[Result "1/2-1/2"]
[WhiteElo "2288"]
[BlackElo "2416"]
[Annotator "RC"]
[PlyCount "113"]
[EventDate "2022.??.??"]
[TimeControl "60"]

1. Nf3 {[%emt 0:00:10]} Nf6 {[%emt 0:00:24]} 2. g3 {[%emt 0:00:26]} b5 {
[%emt 0:00:33]} 3. Bg2 {[%emt 0:00:55]} Bb7 {[%emt 0:00:03]} 4. O-O {[%emt 0:
00:00]} e6 {[%emt 0:00:37]} 5. d3 {[%emt 0:02:09]} Be7 {[%emt 0:01:27]} 6. e4 {
[%emt 0:03:40]} d6 {[%emt 0:01:07]} 7. Nbd2 {[%emt 0:04:42]} O-O {[%emt 0:00:
00]} 8. Re1 {[%emt 0:02:33]} c5 {[%emt 0:04:16]} 9. b3 {[%emt 0:03:06]} Nc6 {
[%emt 0:04:41]} 10. Bb2 {[%emt 0:02:23]} e5 {[%emt 0:02:49]} 11. Nf1 {[%emt 0:
00:00]} a5 {[%emt 0:06:07]} 12. a4 {[%emt 0:06:55]} bxa4 {[%emt 0:03:58]} 13.
Rxa4 {[%emt 0:00:30]} Nd4 {[%emt 0:01:52]} 14. Ne3 {[%emt 0:11:45]} Bc6 {
[%emt 0:02:28]} 15. Ra1 {[%emt 0:06:45]} Qc7 {[%emt 0:08:43]} 16. Nd2 {[%emt 0:
00:00]} Rfb8 {[%emt 0:07:38]} 17. Ndc4 {[%emt 0:00:54]} a4 {[%emt 0:02:05]} 18.
bxa4 {[%emt 0:01:47]} Bxa4 {[%emt 0:03:47]} 19. Qd2 {[%emt 0:02:00]} Bd7 {
[%emt 0:03:21]} 20. Kh1 {[%emt 0:04:00]} Rxa1 {[%emt 0:06:30]} 21. Rxa1 {
[%emt 0:00:50]} Qc8 {[%emt 0:02:11]} 22. f4 {[%emt 0:05:37]} Be6 {[%emt 0:00:
00]} 23. Bc3 {[%emt 0:11:16]} exf4 {[%emt 0:06:39]} 24. gxf4 {[%emt 0:00:13]}
Bf8 {[%emt 0:00:33]} 25. Rf1 {[%emt 0:09:24]} Qd7 {[%emt 0:03:32]} 26. Qf2 {
[%emt 0:02:08]} Qa4 {[%emt 0:05:55]} 27. e5 {[%emt 0:01:29]} dxe5 {[%emt 0:00:
00]} 28. fxe5 {[%emt 0:00:27]} Ne8 {[%emt 0:01:30]} 29. Be4 {[%emt 0:03:54]}
Qd7 {[%emt 0:01:23]} 30. Ng2 {[%emt 0:03:03]} Nc7 {[%emt 0:02:23]} 31. Nf4 {
[%emt 0:01:10]} Bf5 {[%emt 0:01:29]} 32. Bg2 {[%emt 0:01:12]} Ncb5 {[%emt 0:00:
00]} 33. Bb2 {[%emt 0:00:21]} g6 {[%emt 0:00:42]} 34. Nd5 {[%emt 0:01:40]} Bg7
{[%emt 0:00:03]} 35. Bc1 {[%emt 0:00:18]} Nc7 {[%emt 0:01:02]} 36. Nde3 {
[%emt 0:00:58]} Be6 {[%emt 0:00:20]} 37. Ba3 {[%emt 0:00:23]} Nd5 {[%emt 0:00:
00]} 38. Nxd5 {[%emt 0:01:03]} Bxd5 {[%emt 0:00:01]} 39. Bxc5 {[%emt 0:00:12]}
Bxg2+ {[%emt 0:01:47]} 40. Qxg2 {[%emt 0:00:08]} Nf5 {[%emt 0:00:46]} 41. Nd6 {
[%emt 0:04:46]} Nxd6 {[%emt 0:03:37]} 42. Bxd6 {[%emt 0:00:14]} Re8 {[%emt 0:
00:00]} 43. Qe4 {[%emt 0:02:30]} Qe6 {[%emt 0:05:20]} 44. Qf3 {[%emt 0:06:27]}
Bf8 {[%emt 0:01:47]} 45. c4 {[%emt 0:05:06]} Bxd6 {[%emt 0:04:28]} 46. exd6 {
[%emt 0:00:09]} Rc8 {[%emt 0:00:48]} 47. Qb7 {[%emt 0:00:36]} h5 {[%emt 0:00:
00]} 48. Qf3 {[%emt 0:10:02]} Rc5 {[%emt 0:03:39]} 49. Qa8+ {[%emt 0:01:27]}
Kg7 {[%emt 0:02:59]} 50. Qa1+ {[%emt 0:00:21]} Kg8 {[%emt 0:00:38]} 51. Qf6 {
[%emt 0:01:53]} Qd7 {[%emt 0:02:15]} 52. Re1 {[%emt 0:03:25]} Rf5 {[%emt 0:00:
00]} 53. Qe7 {[%emt 0:00:23]} Qc6+ {[%emt 0:00:01]} 54. Re4 {[%emt 0:00:38]}
Qc5 {[%emt 0:00:36]} 55. Re1 {[%emt 0:00:18]} Qc6+ {[%emt 0:00:58]} 56. Re4 {
[%emt 0:00:15]} Qc5 {[%emt 0:00:18]} 57. Re1 {[%emt 0:00:10]} 1/2-1/2

[Event "44th Chess Olympiad Women 2022"]
[Site "Chennai"]
[Date "2022.07.31"]
[Round "3.4"]
[White "Kashlinskaya, Alina"]
[Black "Vo, Thi Kim Phung"]
[Result "1-0"]
[WhiteElo "2505"]
[BlackElo "2333"]
[Annotator "RC"]
[PlyCount "141"]
[EventDate "2022.??.??"]
[TimeControl "60"]

1. e4 {[%emt 0:00:06]} e6 {[%emt 0:00:14]} 2. d4 {[%emt 0:00:08]} d5 {[%emt 0:
00:00]} 3. e5 {[%emt 0:00:08]} c5 {[%emt 0:00:09]} 4. c3 {[%emt 0:00:09]} Nc6 {
[%emt 0:00:07]} 5. Nf3 {[%emt 0:00:18]} Bd7 {[%emt 0:00:26]} 6. Be2 {[%emt 0:
00:00]} Nge7 {[%emt 0:01:34]} 7. O-O {[%emt 0:00:28]} cxd4 {[%emt 0:01:13]} 8.
cxd4 {[%emt 0:00:16]} Nf5 {[%emt 0:00:36]} 9. Nc3 {[%emt 0:00:34]} Be7 {
[%emt 0:00:44]} 10. Bd3 {[%emt 0:00:58]} g6 {[%emt 0:03:54]} 11. Bxf5 {[%emt 0:
00:00]} gxf5 {[%emt 0:00:09]} 12. Bf4 {[%emt 0:01:39]} O-O {[%emt 0:03:08]} 13.
Bh6 {[%emt 0:10:58]} Re8 {[%emt 0:00:12]} 14. Qd2 {[%emt 0:09:13]} f6 {[%emt 0:
00:00]} 15. Rfe1 {[%emt 0:08:05]} Bf8 {[%emt 0:04:03]} 16. Qf4 {[%emt 0:11:00]}
Ne7 {[%emt 0:12:36]} 17. exf6 {[%emt 0:10:36]} Ng6 {[%emt 0:00:10]} 18. Qg5 {
[%emt 0:01:33]} Bxh6 {[%emt 0:01:26]} 19. f7+ {[%emt 0:03:36]} Kxf7 {[%emt 0:
00:00]} 20. Qxh6 {[%emt 0:00:10]} Kg8 {[%emt 0:01:32]} 21. Ng5 {[%emt 0:10:57]}
Re7 {[%emt 0:07:15]} 22. Nxh7 {[%emt 0:01:14]} Rxh7 {[%emt 0:05:26]} 23. Qxg6+
{[%emt 0:00:04]} Rg7 {[%emt 0:00:36]} 24. Qh6 {[%emt 0:01:05]} Qb6 {[%emt 0:00:
00]} 25. Qd2 {[%emt 0:04:04]} Rf8 {[%emt 0:03:45]} 26. Ne2 {[%emt 0:03:00]} f4
{[%emt 0:05:35]} 27. Nxf4 {[%emt 0:03:06]} Rg4 {[%emt 0:00:19]} 28. Ne2 {
[%emt 0:02:17]} e5 {[%emt 0:00:51]} 29. h3 {[%emt 0:03:26]} Qf6 {[%emt 0:08:40]
} 30. Rf1 {[%emt 0:05:15]} Rg6 {[%emt 0:12:20]} 31. dxe5 {[%emt 0:00:51]} Qxe5
{[%emt 0:00:20]} 32. Ng3 {[%emt 0:01:27]} d4 {[%emt 0:04:14]} 33. Rad1 {
[%emt 0:01:38]} Rd6 {[%emt 0:01:11]} 34. Rfe1 {[%emt 0:00:30]} Qg7 {[%emt 0:00:
00]} 35. Qb4 {[%emt 0:03:22]} Rd5 {[%emt 0:02:07]} 36. Qxb7 {[%emt 0:00:23]}
Rb5 {[%emt 0:00:15]} 37. Qxa7 {[%emt 0:01:20]} Rxb2 {[%emt 0:01:48]} 38. Qxd4 {
[%emt 0:02:04]} Qxd4 {[%emt 0:00:06]} 39. Rxd4 {[%emt 0:00:02]} Rfxf2 {[%emt 0:
00:00]} 40. Ne2 {[%emt 0:01:39]} Rf7 {[%emt 0:01:38]} 41. Nf4 {[%emt 0:02:49]}
Rxa2 {[%emt 0:00:38]} 42. Re3 {[%emt 0:00:46]} Rg7 {[%emt 0:06:49]} 43. Kh2 {
[%emt 0:01:05]} Bc6 {[%emt 0:02:42]} 44. Rg3 {[%emt 0:00:23]} Rxg3 {[%emt 0:00:
00]} 45. Kxg3 {[%emt 0:00:05]} Kf7 {[%emt 0:00:11]} 46. h4 {[%emt 0:00:53]}
Ra3+ {[%emt 0:01:05]} 47. Kg4 {[%emt 0:01:37]} Ra2 {[%emt 0:04:21]} 48. g3 {
[%emt 0:00:25]} Ra3 {[%emt 0:00:44]} 49. h5 {[%emt 0:00:53]} Bf3+ {[%emt 0:00:
00]} 50. Kh4 {[%emt 0:00:54]} Ra1 {[%emt 0:02:39]} 51. g4 {[%emt 0:02:21]} Kf6
{[%emt 0:02:16]} 52. Nd3 {[%emt 0:08:08]} Rh1+ {[%emt 0:00:53]} 53. Kg3 {
[%emt 0:00:04]} Be2 {[%emt 0:00:58]} 54. Nf4 {[%emt 0:02:44]} Rg1+ {[%emt 0:00:
00]} 55. Kf2 {[%emt 0:02:08]} Rxg4 {[%emt 0:01:40]} 56. Kxe2 {[%emt 0:00:12]}
Rg3 {[%emt 0:03:38]} 57. Rd3 {[%emt 0:00:55]} Rg1 {[%emt 0:00:34]} 58. Kf3 {
[%emt 0:00:37]} Rf1+ {[%emt 0:00:57]} 59. Kg4 {[%emt 0:00:20]} Rg1+ {[%emt 0:
00:00]} 60. Rg3 {[%emt 0:00:38]} Rh1 {[%emt 0:00:33]} 61. Nh3 {[%emt 0:00:43]}
Rh2 {[%emt 0:02:22]} 62. Rf3+ {[%emt 0:00:10]} Kg7 {[%emt 0:00:05]} 63. Rf2 {
[%emt 0:01:05]} Rh1 {[%emt 0:00:11]} 64. Ra2 {[%emt 0:00:30]} Rb1 {[%emt 0:00:
00]} 65. Ra7+ {[%emt 0:00:17]} Kh6 {[%emt 0:00:24]} 66. Ra6+ {[%emt 0:00:03]}
Kg7 {[%emt 0:00:03]} 67. h6+ {[%emt 0:00:29]} Kh8 {[%emt 0:01:54]} 68. Ng5 {
[%emt 0:00:25]} Rb4+ {[%emt 0:01:18]} 69. Kh5 {[%emt 0:00:07]} Rb8 {[%emt 0:00:
00]} 70. Ra7 {[%emt 0:00:21]} Re8 {[%emt 0:02:40]} 71. Rh7+ {[%emt 0:00:13]}
1-0

[Event "44th Chess Olympiad Women 2022"]
[Site "Chennai"]
[Date "2022.07.31"]
[Round "3.4"]
[White "Kiolbasa, Oliwia"]
[Black "Nguyen, Thi Mai Hung"]
[Result "1-0"]
[WhiteElo "2376"]
[BlackElo "2223"]
[Annotator "RC"]
[PlyCount "149"]
[EventDate "2022.??.??"]
[TimeControl "60"]

1. e4 {[%emt 0:00:30]} e6 {[%emt 0:00:30]} 2. d4 {[%emt 0:00:30]} d5 {[%emt 0:
00:00]} 3. e5 {[%emt 0:00:30]} c5 {[%emt 0:00:30]} 4. c3 {[%emt 0:00:30]} Qb6 {
[%emt 0:00:30]} 5. Nf3 {[%emt 0:00:30]} Bd7 {[%emt 0:00:30]} 6. Bd3 {[%emt 0:
00:00]} cxd4 {[%emt 0:00:30]} 7. O-O {[%emt 0:00:30]} Bb5 {[%emt 0:00:30]} 8.
Bxb5+ {[%emt 0:00:30]} Qxb5 {[%emt 0:00:30]} 9. cxd4 {[%emt 0:00:30]} Qa6 {
[%emt 0:00:30]} 10. Nc3 {[%emt 0:00:30]} Nc6 {[%emt 0:00:30]} 11. Bd2 {[%emt 0:
00:00]} Nge7 {[%emt 0:00:30]} 12. a4 {[%emt 0:00:30]} Nf5 {[%emt 0:00:30]} 13.
Nb5 {[%emt 0:00:30]} Rc8 {[%emt 0:00:30]} 14. Qb3 {[%emt 0:00:30]} Be7 {
[%emt 0:00:30]} 15. Rfc1 {[%emt 0:00:30]} O-O {[%emt 0:00:30]} 16. g4 {[%emt 0:
00:00]} Nh4 {[%emt 0:00:30]} 17. Nxh4 {[%emt 0:00:30]} Bxh4 {[%emt 0:00:30]}
18. g5 {[%emt 0:00:30]} Ne7 {[%emt 0:00:30]} 19. Nd6 {[%emt 0:00:30]} Qe2 {
[%emt 0:00:30]} 20. Qe3 {[%emt 0:00:30]} Qg4+ {[%emt 0:00:30]} 21. Kh1 {
[%emt 0:00:30]} Nf5 {[%emt 0:00:30]} 22. Nxf5 {[%emt 0:00:30]} Qxf5 {[%emt 0:
00:00]} 23. f3 {[%emt 0:00:30]} f6 {[%emt 0:00:30]} 24. gxf6 {[%emt 0:00:30]}
gxf6 {[%emt 0:00:30]} 25. Qf4 {[%emt 0:00:30]} Qxf4 {[%emt 0:00:30]} 26. Bxf4 {
[%emt 0:00:30]} Bf2 {[%emt 0:00:30]} 27. Bh6 {[%emt 0:00:30]} Rfe8 {[%emt 0:00:
00]} 28. Rg1+ {[%emt 0:00:30]} Bxg1 {[%emt 0:00:30]} 29. Rxg1+ {[%emt 0:00:30]}
Kh8 {[%emt 0:00:30]} 30. Bg7+ {[%emt 0:00:30]} Kg8 {[%emt 0:00:30]} 31. Bh6+ {
[%emt 0:00:30]} Kh8 {[%emt 0:00:30]} 32. exf6 {[%emt 0:00:30]} Rc7 {[%emt 0:00:
00]} 33. Bf4 {[%emt 0:00:30]} Rf7 {[%emt 0:00:30]} 34. Rc1 {[%emt 0:00:30]} h6
{[%emt 0:00:30]} 35. Be5 {[%emt 0:00:30]} Kh7 {[%emt 0:00:30]} 36. Kg2 {
[%emt 0:00:30]} Rg8+ {[%emt 0:00:30]} 37. Kf2 {[%emt 0:00:30]} Rd7 {[%emt 0:00:
00]} 38. b4 {[%emt 0:00:30]} a6 {[%emt 0:00:30]} 39. b5 {[%emt 0:00:30]} axb5 {
[%emt 0:00:30]} 40. axb5 {[%emt 0:00:30]} Rf7 {[%emt 0:00:30]} 41. h4 {[%emt 0:
00:00]} h5 {[%emt 0:30:30]} 42. Ke3 {[%emt 0:00:30]} Rg2 {[%emt 0:00:30]} 43.
Kf4 {[%emt 0:00:30]} Rg8 {[%emt 0:00:30]} 44. b6 {[%emt 0:00:30]} Kh6 {[%emt 0:
00:00]} 45. Ke3 {[%emt 0:00:30]} Rg2 {[%emt 0:00:30]} 46. Rc8 {[%emt 0:00:30]}
Rb2 {[%emt 0:00:30]} 47. Bf4+ {[%emt 0:00:30]} Kh7 {[%emt 0:00:30]} 48. Bg5 {
[%emt 0:00:30]} Rxb6 {[%emt 0:00:30]} 49. Kf4 {[%emt 0:00:30]} Rb2 {[%emt 0:00:
00]} 50. Ke5 {[%emt 0:00:30]} Re2+ {[%emt 0:00:30]} 51. Kd6 {[%emt 0:00:30]}
Kg6 {[%emt 0:00:30]} 52. Rg8+ {[%emt 0:00:30]} Kf5 {[%emt 0:00:30]} 53. Rg7 {
[%emt 0:00:30]} Rxf6 {[%emt 0:00:30]} 54. Ke7 {[%emt 0:00:30]} e5 {[%emt 0:00:
00]} 55. Bxf6 {[%emt 0:00:30]} exd4+ {[%emt 0:00:30]} 56. Kf7 {[%emt 0:00:30]}
d3 {[%emt 0:00:30]} 57. Rg5+ {[%emt 0:00:30]} Kf4 {[%emt 0:00:30]} 58. Rxd5 {
[%emt 0:00:30]} d2 {[%emt 0:00:30]} 59. Rd3 {[%emt 0:00:30]} b5 {[%emt 0:00:30]
} 60. Bg5+ {[%emt 0:00:30]} Kg3 {[%emt 0:00:30]} 61. Kg6 {[%emt 0:00:30]} b4 {
[%emt 0:00:30]} 62. Rxd2 {[%emt 0:00:30]} Rxd2 {[%emt 0:00:30]} 63. Bxd2 {
[%emt 0:00:30]} b3 {[%emt 0:00:30]} 64. Bc3 {[%emt 0:00:30]} Kxh4 {[%emt 0:00:
00]} 65. f4 {[%emt 0:00:30]} Kg4 {[%emt 0:00:30]} 66. f5 {[%emt 0:00:30]} h4 {
[%emt 0:00:30]} 67. f6 {[%emt 0:00:30]} h3 {[%emt 0:00:30]} 68. f7 {[%emt 0:00:
00]} h2 {[%emt 0:00:30]} 69. f8=Q {[%emt 0:00:30]} h1=Q {[%emt 0:00:30]} 70.
Qf5+ {[%emt 0:00:30]} Kg3 {[%emt 0:00:30]} 71. Be5+ {[%emt 0:00:30]} Kg2 {
[%emt 0:00:30]} 72. Qe4+ {[%emt 0:00:30]} Kg1 {[%emt 0:00:30]} 73. Qe1+ {
[%emt 0:00:30]} Kg2 {[%emt 0:00:30]} 74. Qe2+ {[%emt 0:00:30]} Kh3 {[%emt 0:00:
00]} 75. Kh5 {[%emt 0:00:30]} 1-0

[Event "44th Chess Olympiad Women 2022"]
[Site "Chennai"]
[Date "2022.07.31"]
[Round "3.5"]
[White "Brunello, Marina"]
[Black "Sebag, Marie"]
[Result "1/2-1/2"]
[WhiteElo "2341"]
[BlackElo "2447"]
[Annotator "RC"]
[PlyCount "69"]
[EventDate "2022.??.??"]
[TimeControl "60"]

1. e4 {[%emt 0:00:06]} c5 {[%emt 0:00:09]} 2. Nf3 {[%emt 0:00:07]} d6 {[%emt 0:
00:00]} 3. Bb5+ {[%emt 0:00:03]} Bd7 {[%emt 0:01:18]} 4. Bxd7+ {[%emt 0:00:11]}
Qxd7 {[%emt 0:00:07]} 5. O-O {[%emt 0:00:29]} Nc6 {[%emt 0:02:04]} 6. c3 {
[%emt 0:01:23]} Nf6 {[%emt 0:00:38]} 7. Qe2 {[%emt 0:00:13]} e6 {[%emt 0:01:06]
} 8. d4 {[%emt 0:00:20]} cxd4 {[%emt 0:00:23]} 9. cxd4 {[%emt 0:00:05]} d5 {
[%emt 0:00:05]} 10. e5 {[%emt 0:00:04]} Ne4 {[%emt 0:00:13]} 11. Nbd2 {[%emt 0:
00:00]} Nxd2 {[%emt 0:01:31]} 12. Bxd2 {[%emt 0:00:06]} Bb4 {[%emt 0:00:19]}
13. Be3 {[%emt 0:13:29]} O-O {[%emt 0:22:08]} 14. h4 {[%emt 0:06:14]} Ne7 {
[%emt 0:22:32]} 15. h5 {[%emt 0:06:07]} h6 {[%emt 0:00:56]} 16. g4 {[%emt 0:00:
00]} Rfc8 {[%emt 0:05:04]} 17. Kh1 {[%emt 0:14:41]} Qa4 {[%emt 0:04:06]} 18. b3
{[%emt 0:02:13]} Qa6 {[%emt 0:00:13]} 19. Qxa6 {[%emt 0:01:23]} bxa6 {[%emt 0:
00:00]} 20. a3 {[%emt 0:04:10]} Ba5 {[%emt 0:01:36]} 21. b4 {[%emt 0:06:37]}
Bb6 {[%emt 0:00:38]} 22. Rac1 {[%emt 0:03:18]} a5 {[%emt 0:04:52]} 23. bxa5 {
[%emt 0:17:05]} Bxa5 {[%emt 0:00:08]} 24. Rb1 {[%emt 0:00:11]} Rab8 {[%emt 0:
00:00]} 25. Kg2 {[%emt 0:01:14]} Kf8 {[%emt 0:08:12]} 26. Rfc1 {[%emt 0:01:27]}
Rxb1 {[%emt 0:01:24]} 27. Rxb1 {[%emt 0:00:06]} Bb6 {[%emt 0:00:14]} 28. Rb3 {
[%emt 0:00:34]} Rc4 {[%emt 0:02:14]} 29. Kf1 {[%emt 0:02:54]} Nc6 {[%emt 0:00:
00]} 30. Ke2 {[%emt 0:01:07]} Na5 {[%emt 0:05:15]} 31. Rd3 {[%emt 0:00:17]}
Rc2+ {[%emt 0:02:20]} 32. Rd2 {[%emt 0:00:28]} Rc3 {[%emt 0:00:06]} 33. Rd3 {
[%emt 0:00:03]} Rc2+ {[%emt 0:00:03]} 34. Rd2 {[%emt 0:01:51]} Rc3 {[%emt 0:00:
00]} 35. Rd3 {[%emt 0:00:08]} 1/2-1/2